[Event "Titled Tuesday Blitz February 22 Early 2022"]
[White "Kirillov, Dmitry"]
[Black "Lonoff, Marc"]
[WhiteFideId "34180572"]
[BlackFideId "2001349"]
[WhiteElo "2076"]
[BlackElo "2241"]
[Result "1/2-1/2"]
[Round "06"]
[TimeControl "180+1"]
[Date "2022.02.22"]
[WhiteClock "0:00:24"]
[BlackClock "0:00:12"]

1. d4 {[%clk 0:02:58]}  e6 {[%clk 0:02:59]} 2. c4 {[%clk 0:02:59]}  Bb4+ {[%clk 0:02:58]} 3. Bd2 {[%clk 0:02:55]}  Qe7 {[%clk 0:02:58]} 4. Nf3 {[%clk 0:02:37]}  Nf6 {[%clk 0:02:47]} 5. g3 {[%clk 0:02:13]}  Nc6 {[%clk 0:02:43]} 6. Bg2 {[%clk 0:02:10]}  Bxd2+ {[%clk 0:02:42]} 7. Qxd2 {[%clk 0:02:09]}  Ne4 {[%clk 0:02:41]} 8. Qc2 {[%clk 0:02:08]}  Qb4+ {[%clk 0:02:38]} 9. Nc3 {[%clk 0:02:00]}  Nxc3 {[%clk 0:02:31]} 10. Qxc3 {[%clk 0:01:58]}  Qxc3+ {[%clk 0:02:31]} 11. bxc3 {[%clk 0:01:58]}  d6 {[%clk 0:02:23]} 12. e4 {[%clk 0:01:54]}  Ke7 {[%clk 0:02:22]} 13. Nd2 {[%clk 0:01:50]}  Na5 {[%clk 0:02:13]} 14. Bf1 {[%clk 0:01:35]}  c5 {[%clk 0:02:12]} 15. Nb3 {[%clk 0:01:34]}  Nc6 {[%clk 0:02:06]} 16. dxc5 {[%clk 0:01:29]}  dxc5 {[%clk 0:02:05]} 17. Nxc5 {[%clk 0:01:30]}  b6 {[%clk 0:02:04]} 18. Nb3 {[%clk 0:01:28]}  Bb7 {[%clk 0:02:01]} 19. f3 {[%clk 0:01:05]}  Rac8 {[%clk 0:01:55]} 20. Kf2 {[%clk 0:00:52]}  Ne5 {[%clk 0:01:50]} 21. c5 {[%clk 0:00:51]}  bxc5 {[%clk 0:01:47]} 22. Na5 {[%clk 0:00:51]}  Ba8 {[%clk 0:01:47]} 23. Nc4 {[%clk 0:00:45]}  Nc6 {[%clk 0:01:32]} 24. Ke3 {[%clk 0:00:43]}  Rhd8 {[%clk 0:01:31]} 25. Bd3 {[%clk 0:00:43]}  Bb7 {[%clk 0:01:23]} 26. Rhd1 {[%clk 0:00:37]}  Rxd3+ {[%clk 0:01:03]} 27. Rxd3 {[%clk 0:00:31]}  Ba6 {[%clk 0:01:03]} 28. Nb2 {[%clk 0:00:19]}  Bxd3 {[%clk 0:01:00]} 29. Nxd3 {[%clk 0:00:20]}  c4 {[%clk 0:00:55]} 30. Nb4 {[%clk 0:00:20]}  Nxb4 {[%clk 0:00:52]} 31. cxb4 {[%clk 0:00:21]}  e5 {[%clk 0:00:52]} 32. Rc1 {[%clk 0:00:22]}  a6 {[%clk 0:00:50]} 33. Kd2 {[%clk 0:00:22]}  Rd8+ {[%clk 0:00:49]} 34. Kc3 {[%clk 0:00:22]}  Rd3+ {[%clk 0:00:48]} 35. Kxc4 {[%clk 0:00:22]}  Rxf3 {[%clk 0:00:49]} 36. a4 {[%clk 0:00:23]}  Re3 {[%clk 0:00:47]} 37. Kd5 {[%clk 0:00:22]}  f6 {[%clk 0:00:46]} 38. Rc7+ {[%clk 0:00:22]}  Kd8 {[%clk 0:00:46]} 39. Rxg7 {[%clk 0:00:23]}  Rb3 {[%clk 0:00:45]} 40. Rxh7 {[%clk 0:00:23]}  Rxb4 {[%clk 0:00:44]} 41. Ke6 {[%clk 0:00:24]}  Rb6+ {[%clk 0:00:44]} 42. Kf5 {[%clk 0:00:24]}  a5 {[%clk 0:00:44]} 43. Rh8+ {[%clk 0:00:25]}  Ke7 {[%clk 0:00:43]} 44. h4 {[%clk 0:00:25]}  Rb3 {[%clk 0:00:41]} 45. Rh7+ {[%clk 0:00:26]}  Kf8 {[%clk 0:00:41]} 46. g4 {[%clk 0:00:27]}  Rf3+ {[%clk 0:00:39]} 47. Kg6 {[%clk 0:00:28]}  Rf4 {[%clk 0:00:39]} 48. Rf7+ {[%clk 0:00:28]}  Ke8 {[%clk 0:00:39]} 49. Rxf6 {[%clk 0:00:29]}  Rxg4+ {[%clk 0:00:39]} 50. Kf5 {[%clk 0:00:29]}  Rxh4 {[%clk 0:00:37]} 51. Kxe5 {[%clk 0:00:30]}  Ke7 {[%clk 0:00:36]} 52. Rf5 {[%clk 0:00:30]}  Rh1 {[%clk 0:00:34]} 53. Rg5 {[%clk 0:00:30]}  Ra1 {[%clk 0:00:31]} 54. Rg7+ {[%clk 0:00:30]}  Kd8 {[%clk 0:00:31]} 55. Kd6 {[%clk 0:00:29]}  Ke8 {[%clk 0:00:28]} 56. e5 {[%clk 0:00:20]}  Rxa4 {[%clk 0:00:25]} 57. e6 {[%clk 0:00:20]}  Rd4+ {[%clk 0:00:24]} 58. Ke5 {[%clk 0:00:21]}  Rd1 {[%clk 0:00:24]} 59. Ra7 {[%clk 0:00:21]}  Re1+ {[%clk 0:00:23]} 60. Kd6 {[%clk 0:00:21]}  Rd1+ {[%clk 0:00:23]} 61. Ke5 {[%clk 0:00:22]}  Re1+ {[%clk 0:00:23]} 62. Kd5 {[%clk 0:00:23]}  Rd1+ {[%clk 0:00:23]} 63. Kc4 {[%clk 0:00:23]}  Re1 {[%clk 0:00:22]} 64. Kd5 {[%clk 0:00:24]}  Rd1+ {[%clk 0:00:22]} 65. Kc6 {[%clk 0:00:24]}  Rc1+ {[%clk 0:00:21]} 66. Kd6 {[%clk 0:00:25]}  Rd1+ {[%clk 0:00:21]} 67. Kc6 {[%clk 0:00:16]}  Rc1+ {[%clk 0:00:21]} 68. Kb5 {[%clk 0:00:16]}  Re1 {[%clk 0:00:20]} 69. Kxa5 {[%clk 0:00:17]}  Rxe6 {[%clk 0:00:20]} 70. Kb5 {[%clk 0:00:17]}  Rg6 {[%clk 0:00:18]} 71. Kc5 {[%clk 0:00:18]}  Kd8 {[%clk 0:00:18]} 72. Kd5 {[%clk 0:00:17]}  Kc8 {[%clk 0:00:18]} 73. Rf7 {[%clk 0:00:18]}  Kb8 {[%clk 0:00:18]} 74. Ke5 {[%clk 0:00:18]}  Rb6 {[%clk 0:00:17]} 75. Kd5 {[%clk 0:00:18]}  Rh6 {[%clk 0:00:16]} 76. Rf8+ {[%clk 0:00:19]}  Kc7 {[%clk 0:00:16]} 77. Rf7+ {[%clk 0:00:20]}  Kd8 {[%clk 0:00:15]} 78. Rg7 {[%clk 0:00:20]}  Ke8 {[%clk 0:00:15]} 79. Ra7 {[%clk 0:00:19]}  Kd8 {[%clk 0:00:15]} 80. Kc5 {[%clk 0:00:19]}  Kc8 {[%clk 0:00:15]} 81. Kb5 {[%clk 0:00:20]}  Kb8 {[%clk 0:00:15]} 82. Rg7 {[%clk 0:00:20]}  Kc8 {[%clk 0:00:15]} 83. Re7 {[%clk 0:00:20]}  Kb8 {[%clk 0:00:15]} 84. Rd7 {[%clk 0:00:19]}  Kc8 {[%clk 0:00:15]} 85. Ra7 {[%clk 0:00:20]}  Kb8 {[%clk 0:00:15]} 86. Ra2 {[%clk 0:00:15]}  Kb7 {[%clk 0:00:14]} 87. Rg2 {[%clk 0:00:15]}  Rh5+ {[%clk 0:00:13]} 88. Kb4 {[%clk 0:00:16]}  Kc6 {[%clk 0:00:13]} 89. Rg6+ {[%clk 0:00:15]}  Kd7 {[%clk 0:00:13]} 90. Rg7+ {[%clk 0:00:16]}  Kc6 {[%clk 0:00:13]} 91. Ra7 {[%clk 0:00:16]}  Kb6 {[%clk 0:00:13]} 92. Rg7 {[%clk 0:00:16]}  Rh4+ {[%clk 0:00:13]} 93. Kc3 {[%clk 0:00:16]}  Kc5 {[%clk 0:00:13]} 94. Rg5+ {[%clk 0:00:16]}  Kc6 {[%clk 0:00:13]} 95. Kd3 {[%clk 0:00:16]}  Kd6 {[%clk 0:00:13]} 96. Ra5 {[%clk 0:00:16]}  Kc6 {[%clk 0:00:13]} 97. Ra6+ {[%clk 0:00:16]}  Kd5 {[%clk 0:00:13]} 98. Ra5+ {[%clk 0:00:17]}  Kd6 {[%clk 0:00:13]} 99. Rg5 {[%clk 0:00:18]}  Ke6 {[%clk 0:00:13]} 100. Rg3 {[%clk 0:00:18]}  Kd6 {[%clk 0:00:13]} 101. Re3 {[%clk 0:00:18]}  Kc6 {[%clk 0:00:13]} 102. Re6+ {[%clk 0:00:17]}  Kd5 {[%clk 0:00:14]} 103. Ra6 {[%clk 0:00:17]}  Kc5 {[%clk 0:00:13]} 104. Kd2 {[%clk 0:00:18]}  Kb5 {[%clk 0:00:13]} 105. Ra3 {[%clk 0:00:18]}  Kc5 {[%clk 0:00:13]} 106. Re3 {[%clk 0:00:19]}  Kd5 {[%clk 0:00:13]} 107. Rg3 {[%clk 0:00:20]}  Kc5 {[%clk 0:00:13]} 108. Rg5+ {[%clk 0:00:21]}  Kd6 {[%clk 0:00:13]} 109. Rg6+ {[%clk 0:00:21]}  Kd5 {[%clk 0:00:13]} 110. Rg3 {[%clk 0:00:21]}  Kd6 {[%clk 0:00:13]} 111. Rd3+ {[%clk 0:00:22]}  Kc5 {[%clk 0:00:13]} 112. Kc3 {[%clk 0:00:22]}  Kc6 {[%clk 0:00:13]} 113. Rd4 {[%clk 0:00:23]}  Rxd4 {[%clk 0:00:12]} 114. Kxd4 {[%clk 0:00:24]} 1/2-1/2


[Site "https://www.chess.com"]

[Event "Titled Tuesday Blitz February 22 Early 2022"]
[White "Kislov, Oleg"]
[Black "Abdisalimov, Abdimalik"]
[WhiteFideId "13503774"]
[BlackFideId "14206323"]
[WhiteElo "2252"]
[BlackElo "2401"]
[Result "0-1"]
[Round "06"]
[TimeControl "180+1"]
[Date "2022.02.22"]
[WhiteClock "0:00:11"]
[BlackClock "0:01:31"]

1. e4 {[%clk 0:03:00]}  c5 {[%clk 0:02:59]} 2. Nf3 {[%clk 0:03:00]}  d6 {[%clk 0:03:00]} 3. c3 {[%clk 0:03:00]}  Nf6 {[%clk 0:03:00]} 4. Be2 {[%clk 0:03:00]}  g6 {[%clk 0:02:58]} 5. O-O {[%clk 0:02:59]}  Bg7 {[%clk 0:02:59]} 6. Bb5+ {[%clk 0:02:59]}  Bd7 {[%clk 0:02:55]} 7. Bxd7+ {[%clk 0:02:57]}  Qxd7 {[%clk 0:02:56]} 8. Re1 {[%clk 0:02:57]}  O-O {[%clk 0:02:56]} 9. d4 {[%clk 0:02:57]}  cxd4 {[%clk 0:02:56]} 10. cxd4 {[%clk 0:02:57]}  d5 {[%clk 0:02:56]} 11. e5 {[%clk 0:02:48]}  Ne4 {[%clk 0:02:53]} 12. Nbd2 {[%clk 0:02:46]}  Nxd2 {[%clk 0:02:50]} 13. Bxd2 {[%clk 0:02:46]}  Nc6 {[%clk 0:02:51]} 14. Bf4 {[%clk 0:02:21]}  Rac8 {[%clk 0:02:49]} 15. Qd2 {[%clk 0:02:20]}  Qf5 {[%clk 0:02:45]} 16. Bh6 {[%clk 0:02:13]}  Rc7 {[%clk 0:02:40]} 17. Bxg7 {[%clk 0:02:12]}  Kxg7 {[%clk 0:02:40]} 18. Rac1 {[%clk 0:02:12]}  Rfc8 {[%clk 0:02:41]} 19. Rc3 {[%clk 0:02:06]}  Nd8 {[%clk 0:02:38]} 20. Rxc7 {[%clk 0:01:34]}  Rxc7 {[%clk 0:02:39]} 21. Rc1 {[%clk 0:01:33]}  Rxc1+ {[%clk 0:02:38]} 22. Qxc1 {[%clk 0:01:33]}  Ne6 {[%clk 0:02:39]} 23. Qd1 {[%clk 0:01:26]}  Nf4 {[%clk 0:02:35]} 24. g3 {[%clk 0:01:04]}  Nh3+ {[%clk 0:02:29]} 25. Kg2 {[%clk 0:01:04]}  g5 {[%clk 0:02:30]} 26. Qe2 {[%clk 0:00:45]}  Qg4 {[%clk 0:02:12]} 27. Qe3 {[%clk 0:00:42]}  Nf4+ {[%clk 0:02:11]} 28. Kg1 {[%clk 0:00:36]}  Ne6 {[%clk 0:02:12]} 29. h3 {[%clk 0:00:27]}  Qf5 {[%clk 0:02:05]} 30. Kg2 {[%clk 0:00:26]}  h5 {[%clk 0:02:02]} 31. Qb3 {[%clk 0:00:25]}  Qe4 {[%clk 0:01:59]} 32. Qe3 {[%clk 0:00:24]}  Qf5 {[%clk 0:01:58]} 33. Nd2 {[%clk 0:00:18]}  Qc2 {[%clk 0:01:54]} 34. Qc3 {[%clk 0:00:17]}  Qd1 {[%clk 0:01:50]} 35. Qe3 {[%clk 0:00:16]}  b6 {[%clk 0:01:44]} 36. Nf3 {[%clk 0:00:16]}  Kg6 {[%clk 0:01:43]} 37. h4 {[%clk 0:00:16]}  g4 {[%clk 0:01:41]} 38. Ng5 {[%clk 0:00:17]}  Qxd4 {[%clk 0:01:30]} 39. Qe2 {[%clk 0:00:08]}  Nxg5 {[%clk 0:01:29]} 40. hxg5 {[%clk 0:00:09]}  Qe4+ {[%clk 0:01:29]} 41. Qxe4+ {[%clk 0:00:08]}  dxe4 {[%clk 0:01:30]} 42. Kf1 {[%clk 0:00:09]}  Kxg5 {[%clk 0:01:30]} 43. Ke2 {[%clk 0:00:10]}  Kf5 {[%clk 0:01:30]} 44. Ke3 {[%clk 0:00:11]}  Kxe5 {[%clk 0:01:31]} 0-1


[Site "https://www.chess.com"]

[Event "Titled Tuesday Blitz February 22 Early 2022"]
[White "Klukin, Kirill"]
[Black "Grunberg, Mihai-Lucian"]
[WhiteFideId "24199273"]
[BlackFideId "1204149"]
[WhiteElo "2324"]
[BlackElo "2364"]
[Result "1-0"]
[Round "06"]
[TimeControl "180+1"]
[Date "2022.02.22"]
[WhiteClock "0:00:24"]
[BlackClock "0:00:04"]

1. d4 {[%clk 0:03:00]}  f5 {[%clk 0:02:59]} 2. c4 {[%clk 0:02:57]}  Nf6 {[%clk 0:02:58]} 3. Nc3 {[%clk 0:02:57]}  g6 {[%clk 0:02:59]} 4. g3 {[%clk 0:02:56]}  Bg7 {[%clk 0:02:59]} 5. Bg2 {[%clk 0:02:57]}  O-O {[%clk 0:02:59]} 6. Nf3 {[%clk 0:02:56]}  c6 {[%clk 0:03:00]} 7. O-O {[%clk 0:02:57]}  d6 {[%clk 0:03:01]} 8. b4 {[%clk 0:02:57]}  Ne4 {[%clk 0:02:56]} 9. Bb2 {[%clk 0:02:52]}  a5 {[%clk 0:02:55]} 10. a3 {[%clk 0:02:51]}  Nd7 {[%clk 0:02:47]} 11. Nxe4 {[%clk 0:02:48]}  fxe4 {[%clk 0:02:47]} 12. Ng5 {[%clk 0:02:49]}  Nb6 {[%clk 0:02:44]} 13. Qb3 {[%clk 0:02:22]}  d5 {[%clk 0:02:43]} 14. cxd5 {[%clk 0:02:22]}  a4 {[%clk 0:02:33]} 15. Qa2 {[%clk 0:02:16]}  cxd5 {[%clk 0:02:32]} 16. Nxe4 {[%clk 0:02:16]}  Nc4 {[%clk 0:02:28]} 17. Nc3 {[%clk 0:02:10]}  Nxb2 {[%clk 0:02:16]} 18. Qxb2 {[%clk 0:02:06]}  Bxd4 {[%clk 0:02:14]} 19. Rad1 {[%clk 0:02:06]}  Qb6 {[%clk 0:01:45]} 20. e3 {[%clk 0:01:40]}  Bxc3 {[%clk 0:01:43]} 21. Qxc3 {[%clk 0:01:41]}  e6 {[%clk 0:01:43]} 22. Rc1 {[%clk 0:01:35]}  Bd7 {[%clk 0:01:40]} 23. Qc7 {[%clk 0:01:33]}  Qxc7 {[%clk 0:01:39]} 24. Rxc7 {[%clk 0:01:34]}  Bc6 {[%clk 0:01:36]} 25. Bh3 {[%clk 0:01:33]}  Rfe8 {[%clk 0:01:28]} 26. Rc1 {[%clk 0:01:33]}  e5 {[%clk 0:01:16]} 27. Bg2 {[%clk 0:01:07]}  Rad8 {[%clk 0:01:09]} 28. b5 {[%clk 0:00:49]}  Bxb5 {[%clk 0:01:08]} 29. Rxb7 {[%clk 0:00:50]}  Bc4 {[%clk 0:01:06]} 30. Ra7 {[%clk 0:00:50]}  e4 {[%clk 0:00:46]} 31. Rxa4 {[%clk 0:00:46]}  Ra8 {[%clk 0:00:38]} 32. Rxa8 {[%clk 0:00:41]}  Rxa8 {[%clk 0:00:39]} 33. Ra1 {[%clk 0:00:42]}  Ra4 {[%clk 0:00:32]} 34. Bf1 {[%clk 0:00:42]}  Kf7 {[%clk 0:00:28]} 35. Bxc4 {[%clk 0:00:28]}  dxc4 {[%clk 0:00:28]} 36. Kf1 {[%clk 0:00:29]}  Ke6 {[%clk 0:00:29]} 37. Ke2 {[%clk 0:00:29]}  Kd5 {[%clk 0:00:25]} 38. Kd2 {[%clk 0:00:29]}  Kc5 {[%clk 0:00:22]} 39. Kc3 {[%clk 0:00:30]}  g5 {[%clk 0:00:18]} 40. g4 {[%clk 0:00:29]}  Ra6 {[%clk 0:00:15]} 41. a4 {[%clk 0:00:28]}  Rf6 {[%clk 0:00:13]} 42. Ra2 {[%clk 0:00:27]}  Rd6 {[%clk 0:00:11]} 43. a5 {[%clk 0:00:26]}  Kb5 {[%clk 0:00:11]} 44. a6 {[%clk 0:00:26]}  Rd3+ {[%clk 0:00:06]} 45. Kc2 {[%clk 0:00:26]}  Rd8 {[%clk 0:00:04]} 46. a7 {[%clk 0:00:26]}  Ra8 {[%clk 0:00:05]} 47. Kc3 {[%clk 0:00:26]}  Kc5 {[%clk 0:00:05]} 48. Ra4 {[%clk 0:00:24]}  Kb5 {[%clk 0:00:04]} 49. Rb4+ {[%clk 0:00:24]}  Ka5 {[%clk 0:00:04]} 50. Rb1 {[%clk 0:00:24]} 1-0


[Site "https://www.chess.com"]

[Event "Titled Tuesday Blitz February 22 Early 2022"]
[White "Kozak, Adam"]
[Black "Dubov, Daniil"]
[WhiteFideId "753246"]
[BlackFideId "24126055"]
[WhiteElo "2459"]
[BlackElo "2791"]
[Result "1/2-1/2"]
[Round "06"]
[TimeControl "180+1"]
[Date "2022.02.22"]
[WhiteClock "0:00:16"]
[BlackClock "0:00:19"]

1. Nf3 {[%clk 0:03:00]}  d5 {[%clk 0:02:59]} 2. g3 {[%clk 0:03:01]}  Bg4 {[%clk 0:02:57]} 3. Bg2 {[%clk 0:03:01]}  Nd7 {[%clk 0:02:57]} 4. c4 {[%clk 0:02:58]}  e6 {[%clk 0:02:56]} 5. cxd5 {[%clk 0:02:56]}  exd5 {[%clk 0:02:57]} 6. O-O {[%clk 0:02:56]}  c6 {[%clk 0:02:57]} 7. d3 {[%clk 0:02:57]}  Bc5 {[%clk 0:02:53]} 8. e4 {[%clk 0:02:57]}  Ne7 {[%clk 0:02:52]} 9. Qc2 {[%clk 0:02:56]}  O-O {[%clk 0:02:47]} 10. Nc3 {[%clk 0:02:55]}  Bb6 {[%clk 0:02:44]} 11. h3 {[%clk 0:02:48]}  Bh5 {[%clk 0:02:42]} 12. Na4 {[%clk 0:02:42]}  Bc7 {[%clk 0:02:38]} 13. Nh4 {[%clk 0:02:41]}  f6 {[%clk 0:02:18]} 14. Nc3 {[%clk 0:02:32]}  Bf7 {[%clk 0:02:13]} 15. d4 {[%clk 0:02:23]}  dxe4 {[%clk 0:02:06]} 16. Bxe4 {[%clk 0:02:24]}  g6 {[%clk 0:02:03]} 17. Bh6 {[%clk 0:02:17]}  Re8 {[%clk 0:02:03]} 18. Rfe1 {[%clk 0:02:18]}  Nb6 {[%clk 0:02:02]} 19. Rad1 {[%clk 0:02:06]}  Nbd5 {[%clk 0:02:01]} 20. a3 {[%clk 0:02:06]}  Qd7 {[%clk 0:02:00]} 21. Bg2 {[%clk 0:02:04]}  Nxc3 {[%clk 0:01:52]} 22. Qxc3 {[%clk 0:01:39]}  Bd5 {[%clk 0:01:40]} 23. Bc1 {[%clk 0:01:25]}  Bxg2 {[%clk 0:01:36]} 24. Nxg2 {[%clk 0:01:26]}  Nd5 {[%clk 0:01:33]} 25. Qb3 {[%clk 0:01:25]}  Ba5 {[%clk 0:01:30]} 26. Rxe8+ {[%clk 0:01:22]}  Rxe8 {[%clk 0:01:30]} 27. Nf4 {[%clk 0:01:22]}  Bb6 {[%clk 0:01:26]} 28. Nxd5 {[%clk 0:01:19]}  cxd5 {[%clk 0:01:22]} 29. Qf3 {[%clk 0:01:19]}  Kg7 {[%clk 0:01:19]} 30. Kg2 {[%clk 0:01:15]}  Re4 {[%clk 0:01:17]} 31. Be3 {[%clk 0:01:16]}  Bc7 {[%clk 0:01:10]} 32. Rc1 {[%clk 0:01:15]}  Bd6 {[%clk 0:01:10]} 33. Qd1 {[%clk 0:00:57]}  Qb5 {[%clk 0:00:48]} 34. Qc2 {[%clk 0:00:51]}  h5 {[%clk 0:00:44]} 35. a4 {[%clk 0:00:45]}  Qd7 {[%clk 0:00:42]} 36. Qb3 {[%clk 0:00:32]}  Qf7 {[%clk 0:00:26]} 37. Rc8 {[%clk 0:00:31]}  h4 {[%clk 0:00:25]} 38. g4 {[%clk 0:00:27]}  Qd7 {[%clk 0:00:21]} 39. Qxd5 {[%clk 0:00:18]}  Rxg4+ {[%clk 0:00:20]} 40. hxg4 {[%clk 0:00:18]}  Qxg4+ {[%clk 0:00:19]} 41. Kf1 {[%clk 0:00:17]}  Qd1+ {[%clk 0:00:19]} 42. Kg2 {[%clk 0:00:18]}  Qg4+ {[%clk 0:00:19]} 43. Kf1 {[%clk 0:00:16]}  Qd1+ {[%clk 0:00:19]} 44. Kg2 {[%clk 0:00:16]}  Qg4+ {[%clk 0:00:19]} 1/2-1/2


[Site "https://www.chess.com"]

[Event "Titled Tuesday Blitz February 22 Early 2022"]
[White "Krutko, Anatoly"]
[Black "Topalov, Aleksandar"]
[WhiteFideId "4185862"]
[BlackFideId "925659"]
[WhiteElo "2378"]
[BlackElo "2098"]
[Result "1-0"]
[Round "06"]
[TimeControl "180+1"]
[Date "2022.02.22"]
[WhiteClock "0:00:14"]
[BlackClock "0:00:06"]

1. e4 {[%clk 0:02:57]}  e6 {[%clk 0:02:59]} 2. d4 {[%clk 0:02:55]}  d5 {[%clk 0:03:00]} 3. Nc3 {[%clk 0:02:56]}  Bb4 {[%clk 0:02:59]} 4. e5 {[%clk 0:02:54]}  Qd7 {[%clk 0:02:59]} 5. h4 {[%clk 0:02:52]}  h5 {[%clk 0:02:58]} 6. Nf3 {[%clk 0:02:51]}  b6 {[%clk 0:02:58]} 7. a3 {[%clk 0:02:46]}  Bxc3+ {[%clk 0:02:58]} 8. bxc3 {[%clk 0:02:47]}  Ba6 {[%clk 0:02:58]} 9. Bxa6 {[%clk 0:02:47]}  Nxa6 {[%clk 0:02:59]} 10. a4 {[%clk 0:02:48]}  Nb8 {[%clk 0:02:59]} 11. a5 {[%clk 0:02:48]}  Nc6 {[%clk 0:02:58]} 12. axb6 {[%clk 0:02:47]}  cxb6 {[%clk 0:02:59]} 13. Ba3 {[%clk 0:02:45]}  Na5 {[%clk 0:02:55]} 14. Nd2 {[%clk 0:02:40]}  Ne7 {[%clk 0:02:49]} 15. Qf3 {[%clk 0:02:09]}  Nf5 {[%clk 0:02:48]} 16. g3 {[%clk 0:02:05]}  Rc8 {[%clk 0:02:46]} 17. O-O {[%clk 0:02:03]}  Nc4 {[%clk 0:02:43]} 18. Nxc4 {[%clk 0:02:02]}  Rxc4 {[%clk 0:02:43]} 19. Rfb1 {[%clk 0:01:59]}  f6 {[%clk 0:02:40]} 20. Bb4 {[%clk 0:01:54]}  Kf7 {[%clk 0:02:32]} 21. Ra6 {[%clk 0:01:46]}  Rc7 {[%clk 0:02:25]} 22. Rba1 {[%clk 0:01:44]}  Kg6 {[%clk 0:02:18]} 23. Bd6 {[%clk 0:01:35]}  Nxd6 {[%clk 0:02:12]} 24. exd6 {[%clk 0:01:35]}  Qxd6 {[%clk 0:02:12]} 25. Rxa7 {[%clk 0:01:34]}  Rhc8 {[%clk 0:02:07]} 26. Qd3+ {[%clk 0:01:26]}  f5 {[%clk 0:02:00]} 27. Qe3 {[%clk 0:01:24]}  Kf7 {[%clk 0:02:00]} 28. Qg5 {[%clk 0:01:23]}  g6 {[%clk 0:01:44]} 29. Qh6 {[%clk 0:01:22]}  Kf6 {[%clk 0:01:43]} 30. Rxc7 {[%clk 0:01:06]}  Qxc7 {[%clk 0:01:43]} 31. Ra3 {[%clk 0:01:00]}  b5 {[%clk 0:01:41]} 32. Qg5+ {[%clk 0:00:47]}  Kf7 {[%clk 0:01:40]} 33. Qh6 {[%clk 0:00:45]}  Kf6 {[%clk 0:01:39]} 34. Qg5+ {[%clk 0:00:45]}  Kf7 {[%clk 0:01:35]} 35. Qc1 {[%clk 0:00:46]}  b4 {[%clk 0:01:03]} 36. cxb4 {[%clk 0:00:43]}  Qxc2 {[%clk 0:01:03]} 37. Ra7+ {[%clk 0:00:42]}  Kg8 {[%clk 0:01:04]} 38. Qxc2 {[%clk 0:00:37]}  Rxc2 {[%clk 0:01:03]} 39. Re7 {[%clk 0:00:38]}  Rd2 {[%clk 0:00:59]} 40. Rxe6 {[%clk 0:00:37]}  Rxd4 {[%clk 0:00:59]} 41. Rxg6+ {[%clk 0:00:37]}  Kf7 {[%clk 0:00:59]} 42. Rg5 {[%clk 0:00:37]}  Kf6 {[%clk 0:00:58]} 43. b5 {[%clk 0:00:37]}  Rb4 {[%clk 0:00:56]} 44. Rxh5 {[%clk 0:00:35]}  Rxb5 {[%clk 0:00:56]} 45. Kg2 {[%clk 0:00:34]}  Rb8 {[%clk 0:00:48]} 46. Kf3 {[%clk 0:00:33]}  Kg6 {[%clk 0:00:48]} 47. Rg5+ {[%clk 0:00:33]}  Kf6 {[%clk 0:00:49]} 48. Ke3 {[%clk 0:00:31]}  Re8+ {[%clk 0:00:46]} 49. Kd2 {[%clk 0:00:30]}  d4 {[%clk 0:00:45]} 50. Rh5 {[%clk 0:00:29]}  Kg6 {[%clk 0:00:44]} 51. Rg5+ {[%clk 0:00:30]}  Kf6 {[%clk 0:00:45]} 52. Kd3 {[%clk 0:00:30]}  Rd8 {[%clk 0:00:44]} 53. g4 {[%clk 0:00:21]}  fxg4 {[%clk 0:00:34]} 54. Rxg4 {[%clk 0:00:22]}  Ke5 {[%clk 0:00:33]} 55. Re4+ {[%clk 0:00:22]}  Kf5 {[%clk 0:00:34]} 56. Rxd4 {[%clk 0:00:23]}  Ra8 {[%clk 0:00:34]} 57. Ke2 {[%clk 0:00:21]}  Ra2+ {[%clk 0:00:32]} 58. Kf1 {[%clk 0:00:21]}  Ke5 {[%clk 0:00:29]} 59. Rb4 {[%clk 0:00:21]}  Kf5 {[%clk 0:00:29]} 60. Kg2 {[%clk 0:00:21]}  Ra3 {[%clk 0:00:27]} 61. f3 {[%clk 0:00:21]}  Ra1 {[%clk 0:00:27]} 62. Rb5+ {[%clk 0:00:17]}  Kf4 {[%clk 0:00:27]} 63. Rb4+ {[%clk 0:00:17]}  Kf5 {[%clk 0:00:27]} 64. Kh3 {[%clk 0:00:18]}  Rh1+ {[%clk 0:00:26]} 65. Kg3 {[%clk 0:00:18]}  Rg1+ {[%clk 0:00:26]} 66. Kf2 {[%clk 0:00:19]}  Ra1 {[%clk 0:00:23]} 67. Re4 {[%clk 0:00:17]}  Ra2+ {[%clk 0:00:21]} 68. Kg3 {[%clk 0:00:17]}  Ra1 {[%clk 0:00:20]} 69. Rf4+ {[%clk 0:00:18]}  Kg6 {[%clk 0:00:20]} 70. Rb4 {[%clk 0:00:16]}  Kf5 {[%clk 0:00:19]} 71. Rb5+ {[%clk 0:00:16]}  Kg6 {[%clk 0:00:18]} 72. Kg4 {[%clk 0:00:17]}  Rg1+ {[%clk 0:00:18]} 73. Kf4 {[%clk 0:00:17]}  Rh1 {[%clk 0:00:17]} 74. h5+ {[%clk 0:00:18]}  Kh6 {[%clk 0:00:15]} 75. Rb8 {[%clk 0:00:15]}  Rh4+ {[%clk 0:00:12]} 76. Ke5 {[%clk 0:00:08]}  Rxh5+ {[%clk 0:00:12]} 77. Ke4 {[%clk 0:00:09]}  Ra5 {[%clk 0:00:11]} 78. Rg8 {[%clk 0:00:09]}  Kh7 {[%clk 0:00:11]} 79. Rg1 {[%clk 0:00:09]}  Ra4+ {[%clk 0:00:12]} 80. Kf5 {[%clk 0:00:09]}  Ra5+ {[%clk 0:00:12]} 81. Kg4 {[%clk 0:00:09]}  Ra8 {[%clk 0:00:10]} 82. Kf5 {[%clk 0:00:06]}  Rf8+ {[%clk 0:00:09]} 83. Ke4 {[%clk 0:00:06]}  Re8+ {[%clk 0:00:09]} 84. Kd4 {[%clk 0:00:07]}  Rd8+ {[%clk 0:00:09]} 85. Ke3 {[%clk 0:00:07]}  Re8+ {[%clk 0:00:10]} 86. Kf2 {[%clk 0:00:08]}  Rf8 {[%clk 0:00:10]} 87. Rg4 {[%clk 0:00:08]}  Kh6 {[%clk 0:00:09]} 88. Kg3 {[%clk 0:00:09]}  Kh5 {[%clk 0:00:09]} 89. f4 {[%clk 0:00:09]}  Ra8 {[%clk 0:00:08]} 90. Rg5+ {[%clk 0:00:09]}  Kh6 {[%clk 0:00:08]} 91. Kg4 {[%clk 0:00:10]}  Ra4 {[%clk 0:00:08]} 92. Rb5 {[%clk 0:00:10]}  Kg6 {[%clk 0:00:07]} 93. Rb6+ {[%clk 0:00:10]}  Kf7 {[%clk 0:00:07]} 94. Kg5 {[%clk 0:00:11]}  Ra1 {[%clk 0:00:06]} 95. Rb7+ {[%clk 0:00:10]}  Kf8 {[%clk 0:00:06]} 96. f5 {[%clk 0:00:10]}  Ra6 {[%clk 0:00:04]} 97. Rh7 {[%clk 0:00:10]}  Kg8 {[%clk 0:00:04]} 98. Rb7 {[%clk 0:00:11]}  Kf8 {[%clk 0:00:04]} 99. Rb2 {[%clk 0:00:11]}  Kf7 {[%clk 0:00:05]} 100. Rg2 {[%clk 0:00:11]}  Ra5 {[%clk 0:00:04]} 101. Rb2 {[%clk 0:00:11]}  Ra4 {[%clk 0:00:04]} 102. Rb7+ {[%clk 0:00:12]}  Kf8 {[%clk 0:00:05]} 103. Kg6 {[%clk 0:00:12]}  Ra6+ {[%clk 0:00:05]} 104. f6 {[%clk 0:00:13]}  Ra8 {[%clk 0:00:06]} 105. Rh7 {[%clk 0:00:13]}  Kg8 {[%clk 0:00:06]} 106. f7+ {[%clk 0:00:13]}  Kf8 {[%clk 0:00:06]} 107. Rh8+ {[%clk 0:00:14]} 1-0


[Site "https://www.chess.com"]